lending/lending_fUSD_20250406
["ID","MTS","AMOUNT","RATE_DAILY","PERIOD"]
[357250796,1743942685946,-500.0,0.00068493,120]
[357250797,1743942685956,-698.76,0.00068493,120]
[357250798,1743942685966,-500.0,0.00068493,120]
[357250799,1743942685977,-500.0,0.00068493,120]
[357250800,1743942685987,-500.0,0.00068493,120]
[357250801,1743942685998,-500.0,0.00068493,120]
[357250802,1743942686008,-500.0,0.00068493,120]
[357250803,1743942686018,-265.59,0.00068493,120]
[357250804,1743942686028,-500.0,0.00068493,120]
[357250805,1743942686037,-500.0,0.00068493,120]
[357250806,1743942686047,-568.56,0.00068493,120]
[357250807,1743942686056,-500.0,0.00068493,120]
[357250808,1743942686066,-500.0,0.00068493,120]
[357250809,1743942686075,-160094.37,0.00068493,7]
[357250810,1743942686085,-1860.22,0.00068493,120]
[357250811,1743942686094,-500.0,0.00068493,120]
[357250812,1743942686109,-500.0,0.00068493,120]
[357250813,1743942686126,-505.0316327,0.00068493,120]
[357250814,1743942686139,-500.0,0.00068493,120]
[357250815,1743942686160,-500.0,0.00068493,120]
[357250816,1743942686177,-500.0,0.00068493,120]
[357250817,1743942686194,-421.25,0.00068493,120]
[357250818,1743942686208,-533.0,0.00068493,120]
[357250819,1743942686226,-165.040617,0.00068498,120]
[357250820,1743942686243,-218.79,0.00068519,2]
[357250821,1743942686260,-500.0,0.00068904,120]
[357250822,1743942686276,-900.0,0.00068904,120]
[357250823,1743942686292,-66402.40063998,0.0006899,120]
[357250824,1743942686307,-177.96943445,0.00069,6]
[357250825,1743942686324,-1670.58,0.000692,60]
[357250826,1743942686340,-151.0,0.00069397,120]
[357250827,1743942686355,-303.70618923,0.00069452,120]
[357250828,1743942686367,-900.0,0.00069452,120]
[357250829,1743942686385,-165.040617,0.00069498,120]
[357250830,1743942686398,-156.79,0.0006968,120]
[357250831,1743942686411,-506591.33,0.0006969,120]
[357250832,1743942686427,-500.0,0.00069693,120]
[357250833,1743942686441,-500.0,0.00069778,120]
[357250834,1743942686456,-2000.0,0.0006985,32]
[357250835,1743942686469,-77113.97006217,0.0006987,120]
[357250836,1743942686483,-2000.0,0.0006989,32]
[357250837,1743942686496,-86023.29467393,0.000699,120]
[357250838,1743942686510,-1751.0,0.000699,120]
[357250839,1743942686524,-533.0,0.000699,120]
[357250840,1743942686537,-500.07937567,0.000699,120]
[357250841,1743942686551,-150.0,0.00069973,30]
[357250842,1743942686565,-47046.27007159,0.0006998,120]
[357250843,1743942686578,-511.79233413,0.00069999,120]
[357250844,1743942686592,-511.79233413,0.00069999,120]
[357250845,1743942686604,-511.79233413,0.00069999,120]
[357250846,1743942686616,-511.79233413,0.00069999,120]
[357250847,1743942686628,-511.79233413,0.00069999,120]
[357250848,1743942686642,-511.79233413,0.00069999,120]
[357250849,1743942686659,-511.79233413,0.00069999,120]
[357250850,1743942686672,-562.97156754,0.00069999,120]
[357250851,1743942686685,-562.97156754,0.00069999,120]
[357250852,1743942686698,-562.97156754,0.00069999,120]
[357250853,1743942686712,-562.97156754,0.00069999,120]
[357250854,1743942686726,-475.67031874,0.00069999,120]
[357250855,1743942686740,-500.0,0.00069999,120]
[357250856,1743942686754,-500.0,0.00069999,120]
[357250857,1743942686767,-500.0,0.00069999,120]
[357250858,1743942686780,-500.0,0.00069999,120]
[357250859,1743942686795,-500.0,0.00069999,120]
[357250860,1743942686809,-500.0,0.00069999,120]
[357250861,1743942686824,-500.0,0.00069999,120]
[357250862,1743942686838,-500.0,0.00069999,120]
[357250863,1743942686853,-500.0,0.00069999,120]
[357250864,1743942686867,-500.0,0.00069999,120]
[357250865,1743942686881,-500.0,0.00069999,120]
[357250866,1743942686895,-542.51554839,0.00069999,120]
[357250867,1743942686909,-500.0,0.00069999,120]
[357250868,1743942686924,-500.0,0.00069999,120]
[357250869,1743942686939,-500.0,0.00069999,120]
[357250870,1743942686954,-500.0,0.00069999,120]
[357250871,1743942686970,-500.0,0.00069999,120]
[357250872,1743942686984,-500.0,0.00069999,120]
[357250873,1743942687000,-500.0,0.00069999,120]
[357250874,1743942687016,-500.0,0.00069999,120]
[357250875,1743942687030,-468.44578784,0.00069999,120]
[357250876,1743942687044,-178.73462922,0.00069999,120]
[357250877,1743942687058,-470.27762669,0.00069999,120]
[357250878,1743942687073,-500.0,0.00069999,120]
[357250879,1743942687089,-500.0,0.00069999,120]
[357250880,1743942687104,-500.0,0.00069999,120]
[357250881,1743942687120,-500.0,0.00069999,120]
[357250882,1743942687133,-500.0,0.00069999,120]
[357250883,1743942687148,-500.0,0.00069999,120]
[357250884,1743942687163,-500.0,0.00069999,120]
[357250885,1743942687178,-500.0,0.00069999,120]
[357250886,1743942687195,-500.0,0.00069999,120]
[357250888,1743942687209,-500.0,0.00069999,120]
[357250889,1743942687224,-500.0,0.00069999,120]
[357250890,1743942687239,-500.0,0.00069999,120]
[357250891,1743942687253,-500.0,0.00069999,120]
[357250892,1743942687266,-500.0,0.00069999,120]
[357250893,1743942687280,-500.0,0.00069999,120]
[357250894,1743942687295,-500.0,0.00069999,120]
[357250895,1743942687309,-500.0,0.00069999,120]
[357250896,1743942687324,-500.0,0.00069999,120]
[357250897,1743942687339,-571.76186652,0.00069999,120]
[357250898,1743942687352,-500.0,0.00069999,120]
[357250899,1743942687364,-500.0,0.00069999,120]
[357250900,1743942687379,-500.0,0.00069999,120]
[357250901,1743942687393,-500.0,0.00069999,120]
[357250902,1743942687407,-500.0,0.00069999,120]
[357250903,1743942687605,-500.0,0.00069999,120]
[357250904,1743942687624,-500.0,0.00069999,120]
[357250905,1743942687635,-500.0,0.00069999,120]
[357250906,1743942687645,-500.0,0.00069999,120]
[357250907,1743942687655,-500.0,0.00069999,120]
[357250908,1743942687665,-500.0,0.00069999,120]
[357250909,1743942687675,-500.0,0.00069999,120]
[357250910,1743942687686,-500.0,0.00069999,120]
[357250911,1743942687696,-500.0,0.00069999,120]
[357250912,1743942687705,-50000.0,0.0007,70]
[357250913,1743942687714,-900.0,0.0007,120]
[357250914,1743942687724,-300.0,0.0007,120]
[357250915,1743942687735,-1000000.0,0.0007,120]
[357250916,1743942687745,-2000.0,0.0007,120]
[357250917,1743942687756,-500000.0,0.0007,120]
[357250918,1743942687766,-700.0,0.0007,45]
[357250919,1743942687775,-200000.0,0.0007,120]
[357250920,1743942687785,-4700.0,0.0007,120]
[357250921,1743942687795,-540.62,0.00070206,120]
[357250922,1743942687806,-151.41970727,0.00070448,120]
[357250923,1743942687815,-1000000.0,0.000705,120]
[357250924,1743942687825,-154.73463474,0.000705,30]
[357250925,1743942687835,-900.0,0.00070548,120]
[357250926,1743942687845,-500.0,0.00070555,120]
[357250927,1743942687856,-218.79,0.00070783,2]
[357250928,1743942687866,-168.97,0.00070904,120]
[357250929,1743942687877,-500.0,0.0007091,120]
[357250930,1743942687887,-1000000.0,0.00071,120]
[357250931,1743942687898,-580.10255106,0.00071096,120]
[357250932,1743942687909,-500.0,0.00071232,120]
[357250933,1743942687919,-500.0,0.00071232,120]
[357250934,1743942687930,-500.0,0.00071232,120]
[357250935,1743942687940,-1000.0,0.00071232,120]
[357250936,1743942687951,-500.0,0.00071232,120]
[357250937,1743942687962,-500.0,0.00071232,120]
[357250938,1743942687972,-500.0,0.00071232,120]
[357250939,1743942687983,-500.0,0.00071232,120]
[357250940,1743942687994,-500.0,0.00071232,120]
[357250941,1743942688004,-500.0,0.00071232,120]
[357250942,1743942688015,-500.0,0.00071232,120]
[357250943,1743942688025,-500.0,0.00071232,120]
[357250944,1743942688035,-500.0,0.00071232,120]
[357250945,1743942688045,-500.0,0.00071232,120]
[357250946,1743942688055,-500.0,0.00071232,120]
[357250947,1743942688065,-500.0,0.00071232,120]
[357250948,1743942688075,-500.0,0.00071232,120]
[357250949,1743942688085,-500.0,0.00071232,120]
[357250950,1743942688095,-500.0,0.00071232,120]
[357250951,1743942688105,-500.0,0.00071232,120]
[357250952,1743942688115,-500.0,0.00071232,120]
[357250953,1743942688125,-519.86,0.00071232,120]
[357250954,1743942688135,-500.0,0.00071232,120]
[357250955,1743942688147,-500.0,0.00071232,120]
[357250956,1743942688158,-500.0,0.00071232,120]
[357250957,1743942688168,-500.0,0.00071232,120]
[357250958,1743942688179,-6218.07,0.00071232,120]
[357250959,1743942688191,-500.0,0.00071232,120]
[357250960,1743942688202,-500.0,0.00071232,120]
[357250961,1743942688212,-500.0,0.00071232,120]
[357250962,1743942688223,-500.0,0.00071232,120]
[357250963,1743942688233,-500.0,0.00071232,120]
[357250964,1743942688243,-500.0,0.00071232,120]
[357250965,1743942688253,-500.0,0.00071232,120]
[357250966,1743942688263,-500.0,0.00071232,120]
[357250967,1743942688274,-500.0,0.00071232,120]
[357250968,1743942688284,-500.0,0.00071232,120]
[357250969,1743942688293,-500.0,0.00071232,120]
[357250970,1743942688303,-1262.23,0.00071232,120]
[357250971,1743942688313,-500.0,0.00071232,120]
[357250972,1743942688323,-1081.04,0.00071232,120]
[357250973,1743942688333,-500.0,0.00071232,120]
[357250974,1743942688343,-500.0,0.00071232,120]
[357250975,1743942688354,-500.0,0.00071232,120]
[357250976,1743942688364,-401.80079401,0.00071232,120]
[357250977,1743942688374,-500.0,0.00071232,120]
[357250978,1743942688384,-500.0,0.00071232,120]
[357250979,1743942688394,-500.0,0.00071232,120]
[357250980,1743942688404,-507.31,0.00071232,120]
[357250981,1743942688415,-603.09,0.00071232,10]
[357250982,1743942688425,-500.0,0.00071232,120]
[357250983,1743942688436,-500.0,0.00071232,120]
[357250984,1743942688445,-500.0,0.00071232,120]
[357250985,1743942688455,-500.0,0.00071232,120]
[357250986,1743942688464,-500.0,0.00071232,120]
[357250987,1743942688475,-500.0,0.00071232,120]
[357250988,1743942688485,-500.0,0.00071232,120]
[357250989,1743942688495,-170.05189874,0.00071232,120]
[357250990,1743942688505,-577.9828804,0.00071232,120]
[357250991,1743942688516,-500.0,0.00071232,120]
[357250992,1743942688526,-500.0,0.00071232,2]
[357250993,1743942688536,-500.0,0.00071232,120]
[357250994,1743942688546,-500.0,0.00071232,120]
[357250995,1743942688556,-500.0,0.00071232,120]
[357250996,1743942688565,-500.0,0.00071232,120]
[357250997,1743942688575,-698.76,0.00071232,120]
[357250998,1743942688585,-500.0,0.00071232,120]
[357250999,1743942688595,-500.0,0.00071232,120]
[357251000,1743942688605,-500.0,0.00071232,120]
[357251001,1743942688615,-500.0,0.00071232,120]
[357251002,1743942688624,-500.0,0.00071232,120]
[357251003,1743942688634,-500.0,0.00071232,120]
[357251004,1743942688643,-500.0,0.00071232,120]
[357251005,1743942688652,-500.0,0.00071232,120]
[357251006,1743942688661,-500.0,0.00071232,120]
[357251007,1743942688671,-160094.37,0.00071232,7]
[357251008,1743942688680,-1860.22,0.00071232,120]
[357251009,1743942688690,-165.13,0.00071232,120]
[357251010,1743942688700,-500.0,0.00071232,120]
[357251011,1743942688709,-453.44,0.00071232,120]
[357251012,1743942688721,-500.0,0.00071232,120]
[357251013,1743942688731,-500.0,0.00071232,120]
[357251014,1743942688741,-1000000.0,0.000715,120]
[357251015,1743942688751,-2000.0,0.00071812,15]
[357251016,1743942688760,-1000000.0,0.00072,120]
[357251017,1743942688769,-200000.0,0.00072,120]
[357251018,1743942688779,-500.0,0.00072033,120]
[357251019,1743942688788,-1000000.0,0.000725,120]
[357251020,1743942688797,-340.04,0.00072522,120]
[357251021,1743942688806,-2997.3051219,0.0007295,7]
[357251022,1743942688816,-5187.9261355,0.0007295,7]
[357251023,1743942688827,-1000000.0,0.00073,120]
[357251024,1743942688836,-43000.0,0.00073,120]
[357251025,1743942688846,-944.58542896,0.00073022,120]
[357251026,1743942688855,-218.79,0.00073047,2]
[357251027,1743942688865,-500.0,0.00073247,120]
[357251028,1743942688875,-1000000.0,0.000735,120]
[357251029,1743942688885,-500.0,0.00073883,120]
[357251030,1743942688894,-500.0,0.00073972,120]
[357251031,1743942688904,-500.0,0.00073972,120]
[357251032,1743942688917,-500.0,0.00073972,120]
[357251033,1743942688926,-1000.0,0.00073972,120]
[357251034,1743942688935,-500.0,0.00073972,120]
[357251035,1743942688944,-500.0,0.00073972,120]
[357251036,1743942688953,-500.0,0.00073972,120]
[357251037,1743942688963,-500.0,0.00073972,120]
[357251038,1743942688972,-500.0,0.00073972,120]
[357251039,1743942688981,-370.27,0.00073972,120]
[357251040,1743942688991,-500.0,0.00073972,120]
[357251041,1743942689004,-500.0,0.00073972,120]
[357251042,1743942689014,-500.0,0.00073972,120]
[357251043,1743942689024,-500.0,0.00073972,120]
[357251044,1743942689034,-500.0,0.00073972,120]
[357251045,1743942689046,-551.2187959,0.00073972,120]
[357251046,1743942689055,-500.0,0.00073972,120]
[357251047,1743942689065,-500.0,0.00073972,120]
[357251048,1743942689074,-500.0,0.00073972,120]
[357251049,1743942689083,-500.0,0.00073972,120]
[357251050,1743942689092,-500.0,0.00073972,120]
[357251051,1743942689102,-519.86,0.00073972,120]
[357251052,1743942689111,-500.0,0.00073972,120]
[357251053,1743942689121,-500.0,0.00073972,120]
[357251054,1743942689130,-500.0,0.00073972,120]
[357251055,1743942689139,-500.0,0.00073972,120]
[357251056,1743942689151,-6218.07,0.00073972,120]
[357251057,1743942689161,-500.0,0.00073972,120]
[357251058,1743942689170,-500.0,0.00073972,120]
[357251059,1743942689179,-500.0,0.00073972,120]
[357251060,1743942689189,-500.0,0.00073972,120]
[357251061,1743942689199,-500.0,0.00073972,120]
[357251062,1743942689208,-500.0,0.00073972,120]
[357251063,1743942689218,-500.0,0.00073972,120]
[357251064,1743942689229,-500.0,0.00073972,120]
[357251065,1743942689239,-500.0,0.00073972,120]
[357251066,1743942689249,-500.0,0.00073972,120]
[357251067,1743942689258,-500.0,0.00073972,120]
[357251068,1743942689268,-1262.23,0.00073972,120]
[357251069,1743942689277,-500.0,0.00073972,120]
[357251070,1743942689287,-1081.04,0.00073972,120]
[357251071,1743942689296,-500.0,0.00073972,120]
[357251072,1743942689305,-500.0,0.00073972,120]
[357251073,1743942689315,-500.0,0.00073972,120]
[357251074,1743942689325,-500.0,0.00073972,120]
[357251075,1743942689334,-500.0,0.00073972,120]
[357251076,1743942689343,-500.0,0.00073972,120]
[357251077,1743942689352,-507.31,0.00073972,120]
[357251078,1743942689362,-603.09,0.00073972,10]
[357251079,1743942689371,-500.0,0.00073972,120]
[357251080,1743942689381,-500.0,0.00073972,120]
[357251081,1743942689390,-500.0,0.00073972,120]
[357251082,1743942689399,-500.0,0.00073972,120]
[357251083,1743942689408,-363.07,0.00073972,120]
[357251084,1743942689417,-500.0,0.00073972,120]
[357251085,1743942689426,-500.0,0.00073972,120]
[357251086,1743942689436,-500.0,0.00073972,120]
[357251087,1743942689445,-466.24432931,0.00073972,2]
[357251088,1743942689456,-500.0,0.00073972,120]
[357251089,1743942689465,-500.0,0.00073972,120]
[357251090,1743942689474,-500.0,0.00073972,120]
[357251091,1743942689483,-500.0,0.00073972,120]
[357251092,1743942689492,-698.76,0.00073972,120]
[357251093,1743942689502,-500.0,0.00073972,120]
[357251094,1743942689511,-500.0,0.00073972,120]
[357251095,1743942689520,-500.0,0.00073972,120]
[357251096,1743942689529,-500.0,0.00073972,120]
[357251097,1743942689539,-500.0,0.00073972,120]
[357251098,1743942689548,-612.19234541,0.00073972,120]
[357251099,1743942689557,-500.0,0.00073972,120]
[357251100,1743942689566,-500.0,0.00073972,120]
[357251101,1743942689575,-500.0,0.00073972,120]
[357251102,1743942689584,-160094.37,0.00073972,7]
[357251103,1743942689593,-1860.22,0.00073972,120]
[357251104,1743942689603,-634.77,0.00073972,120]
[357251105,1743942689612,-500.0,0.00073972,120]
[357251106,1743942689622,-500.0,0.00073972,120]
[357251107,1743942689731,-1000000.0,0.00074,120]
[357251108,1743942689740,-200.0,0.000744,120]
[357251109,1743942689750,-500.0,0.00074477,120]
[357251110,1743942689759,-2000.0,0.000745,120]
[357251111,1743942689768,-1000000.0,0.000745,120]
[357251112,1743942689778,-540.62,0.00074684,120]
[357251113,1743942689787,-999.999999,0.00074754,120]
[357251114,1743942689797,-50000.0,0.00075,75]
[357251115,1743942689806,-1000000.0,0.00075,120]
[357251116,1743942689816,-500000.0,0.00075,120]
[357251117,1743942689825,-2000.0,0.00075,120]
[357251118,1743942689835,-218.79,0.00075311,2]
[357251119,1743942689845,-1000000.0,0.000755,120]
[357251120,1743942689854,-156.79,0.00075799,120]
[357251121,1743942689864,-898329.0,0.00076,120]
[357251122,1743942689873,-57955.0,0.00076,120]
[357251123,1743942689882,-391266.52,0.000765,120]
[357251124,1743942689891,-500.0,0.00076712,120]
[357251125,1743942689900,-258.58930502,0.00076712,120]
[357251126,1743942689910,-500.0,0.00076712,120]
[357251127,1743942689919,-1000.0,0.00076712,120]
[357251128,1743942689929,-500.0,0.00076712,120]
[357251129,1743942689938,-500.0,0.00076712,120]
[357251130,1743942689947,-500.0,0.00076712,120]
[357251131,1743942689956,-500.0,0.00076712,120]
[357251132,1743942689965,-500.0,0.00076712,120]
[357251133,1743942689975,-500.0,0.00076712,120]
[357251134,1743942689984,-500.0,0.00076712,120]
[357251135,1743942689994,-309.47095827,0.00076712,120]
[357251136,1743942690003,-589.42386069,0.00076712,120]
[357251137,1743942690013,-512.51,0.00076712,120]
[357251138,1743942690023,-286.9723,0.00076712,120]
[357251139,1743942690033,-500.0,0.00076712,120]
[357251140,1743942690043,-500.0,0.00076712,120]
[357251141,1743942690052,-500.0,0.00076712,120]
[357251142,1743942690061,-500.0,0.00076712,120]
[357251143,1743942690070,-519.86,0.00076712,120]
[357251144,1743942690079,-500.0,0.00076712,120]
[357251145,1743942690088,-535.68406834,0.00076712,120]
[357251146,1743942690097,-574.57802122,0.00076712,120]
[357251147,1743942690106,-500.0,0.00076712,120]
[357251148,1743942690115,-6218.07,0.00076712,120]
[357251149,1743942690124,-500.0,0.00076712,120]
[357251150,1743942690133,-500.0,0.00076712,120]
[357251151,1743942690143,-500.0,0.00076712,120]
[357251152,1743942690157,-471.36740986,0.00076712,120]
[357251153,1743942690167,-500.0,0.00076712,120]
[357251154,1743942690177,-500.0,0.00076712,120]
[357251155,1743942690186,-500.0,0.00076712,120]
[357251156,1743942690196,-203.22392034,0.00076712,120]
[357251157,1743942690206,-500.0,0.00076712,120]
[357251158,1743942690215,-500.0,0.00076712,120]
[357251159,1743942690224,-489.72089519,0.00076712,120]
[357251160,1743942690235,-1262.23,0.00076712,120]
[357251161,1743942690245,-500.0,0.00076712,120]
[357251162,1743942690253,-1081.04,0.00076712,120]
[357251163,1743942690263,-500.0,0.00076712,120]
[357251164,1743942690272,-500.0,0.00076712,120]
[357251165,1743942690282,-500.0,0.00076712,120]
[357251166,1743942690291,-500.0,0.00076712,120]
[357251167,1743942690300,-580.75618763,0.00076712,120]
[357251168,1743942690310,-470.52,0.00076712,120]
[357251169,1743942690319,-507.31,0.00076712,120]
[357251170,1743942690328,-603.09,0.00076712,10]
[357251171,1743942690338,-314.81685993,0.00076712,120]
[357251172,1743942690347,-500.0,0.00076712,120]
[357251173,1743942690357,-500.0,0.00076712,120]
[357251174,1743942690366,-500.0,0.00076712,120]
[357251175,1743942690375,-500.0,0.00076712,120]
[357251176,1743942690384,-492.62,0.00076712,120]
[357251177,1743942690394,-500.0,0.00076712,120]
[357251178,1743942690404,-504.25395446,0.00076712,120]
[357251179,1743942690413,-500.0,0.00076712,120]
[357251180,1743942690423,-500.0,0.00076712,120]
[357251181,1743942690432,-500.0,0.00076712,120]
[357251182,1743942690442,-698.76,0.00076712,120]
[357251183,1743942690451,-471.92494653,0.00076712,120]
[357251184,1743942690460,-500.0,0.00076712,120]
[357251185,1743942690470,-539.09,0.00076712,120]
[357251186,1743942690479,-504.46318308,0.00076712,120]
[357251187,1743942690489,-500.0,0.00076712,120]
[357251188,1743942690498,-248.82485894,0.00076712,120]
[357251189,1743942690507,-500.0,0.00076712,120]
[357251190,1743942690517,-500.0,0.00076712,120]
[357251191,1743942690526,-160094.37,0.00076712,7]
[357251192,1743942690535,-1860.22,0.00076712,120]
[357251193,1743942690544,-500.0,0.00076712,120]
[357251194,1743942690554,-500.0,0.00076712,120]
[357251195,1743942690564,-39999.82,0.000768,2]
[357251196,1743942690573,-949.971443,0.00077,120]
[357251197,1743942690582,-1670.58,0.00077,60]
[357251198,1743942690592,-3000.0,0.0007744,32]
[357251199,1743942690601,-151.0,0.00077534,120]
[357251200,1743942690611,-500.0,0.00077926,120]
[357251201,1743942690620,-900.0,0.00078,120]
[357251202,1743942690629,-200.0,0.000784,120]
[357251203,1743942690639,-7999.89,0.000789,2]
[357251204,1743942690648,-540.62,0.00079162,120]
[357251205,1743942690657,-3000.0,0.0007944,32]
[357251206,1743942690667,-500.0,0.00079452,120]
[357251207,1743942690676,-500.0,0.00079452,120]
[357251208,1743942690685,-1000.0,0.00079452,120]
[357251209,1743942690694,-500.0,0.00079452,120]
[357251210,1743942690704,-500.0,0.00079452,120]
[357251211,1743942690713,-500.0,0.00079452,120]
[357251212,1743942690722,-500.0,0.00079452,120]
[357251213,1743942690732,-500.0,0.00079452,120]
[357251214,1743942690742,-500.0,0.00079452,120]
[357251215,1743942690751,-500.0,0.00079452,120]
[357251216,1743942690761,-500.0,0.00079452,120]
[357251217,1743942690770,-500.0,0.00079452,120]
[357251218,1743942690779,-500.0,0.00079452,120]
[357251219,1743942690789,-500.0,0.00079452,120]
[357251220,1743942690799,-519.86,0.00079452,120]
[357251221,1743942690808,-500.0,0.00079452,120]
[357251222,1743942690817,-500.0,0.00079452,120]
[357251223,1743942690827,-6218.07,0.00079452,120]
[357251224,1743942690837,-168.50056397,0.00079452,120]
[357251225,1743942690847,-500.0,0.00079452,120]
[357251226,1743942690857,-176.01295176,0.00079452,120]
[357251227,1743942690866,-500.0,0.00079452,120]
[357251228,1743942690875,-500.0,0.00079452,120]
[357251229,1743942690885,-281.78,0.00079452,120]
[357251230,1743942690895,-500.0,0.00079452,120]
[357251231,1743942690904,-500.0,0.00079452,120]
[357251232,1743942690914,-1262.23,0.00079452,120]
[357251233,1743942690924,-500.0,0.00079452,120]
[357251234,1743942690934,-1081.04,0.00079452,120]
[357251235,1743942690943,-500.0,0.00079452,120]
[357251236,1743942690953,-500.0,0.00079452,120]
[357251237,1743942690962,-500.0,0.00079452,120]
[357251238,1743942690972,-500.0,0.00079452,120]
[357251239,1743942690981,-507.31,0.00079452,120]
[357251240,1743942690991,-603.09,0.00079452,10]
[357251241,1743942691001,-500.0,0.00079452,120]
[357251242,1743942691011,-500.0,0.00079452,120]
[357251243,1743942691021,-500.0,0.00079452,120]
[357251244,1743942691030,-500.0,0.00079452,120]
[357251245,1743942691041,-500.0,0.00079452,120]
[357251246,1743942691050,-376.96,0.00079452,120]
[357251247,1743942691060,-500.0,0.00079452,120]
[357251248,1743942691069,-444.55086987,0.00079452,120]
[357251249,1743942691079,-698.76,0.00079452,120]
[357251250,1743942691089,-500.0,0.00079452,120]
[357251251,1743942691098,-500.0,0.00079452,120]
[357251252,1743942691108,-500.0,0.00079452,120]
[357251253,1743942691118,-500.0,0.00079452,120]
[357251254,1743942691129,-160094.37,0.00079452,7]
[357251255,1743942691138,-1860.22,0.00079452,120]
[357251256,1743942691153,-500.0,0.00079452,120]
[357251257,1743942691164,-500.0,0.00079452,120]
[357251258,1743942691172,-59008.42,0.000797,120]
[357251259,1743942691183,-600.0,0.00079792,120]
[357251260,1743942691194,-600.0,0.00079792,120]
[357251261,1743942691204,-600.0,0.00079792,120]
[357251262,1743942691214,-596.59095247,0.00079792,120]
[357251263,1743942691224,-966.67388702,0.0007989,120]
[357251264,1743942691233,-966.67388702,0.0007989,120]
[357251265,1743942691242,-966.67388702,0.0007989,120]
[357251266,1743942691251,-966.67388702,0.0007989,120]
[357251267,1743942691261,-966.67388702,0.0007989,120]
[357251268,1743942691270,-966.67388702,0.0007989,120]
[357251269,1743942691280,-50000.0,0.0008,80]
[357251270,1743942691289,-1000.0,0.0008,120]
[357251271,1743942691299,-200.0,0.0008,120]
[357251272,1743942691308,-508.0,0.0008,120]
[357251273,1743942691318,-1169.91650251,0.0008,120]
[357251274,1743942691328,-2956.813199,0.0008,120]
[357251275,1743942691337,-2000.0,0.0008,120]
[357251276,1743942691347,-500.0,0.00080194,120]
[357251277,1743942691356,-500.0,0.00081202,120]
[357251278,1743942691366,-156.79,0.00081918,120]
[357251279,1743942691375,-167.05,0.00081918,120]
[357251280,1743942691385,-2354.0,0.00082,120]
[357251281,1743942691394,-200.0,0.00082,120]
[357251282,1743942691403,-2812.1012469,0.00082135,10]
[357251283,1743942691413,-250.0,0.00082191,120]
[357251284,1743942691422,-250.0,0.00082191,120]
[357251285,1743942691431,-250.0,0.00082191,120]
[357251286,1743942691443,-250.0,0.00082191,120]
[357251287,1743942691452,-500.0,0.00082191,120]
[357251288,1743942691463,-500.0,0.00082191,120]
[357251289,1743942691472,-1000.0,0.00082191,120]
[357251290,1743942691482,-289.84125791,0.00082191,120]
[357251291,1743942691490,-500.0,0.00082191,120]
[357251292,1743942691499,-500.0,0.00082191,120]
[357251293,1743942691509,-500.0,0.00082191,120]
[357251294,1743942691518,-500.0,0.00082191,120]
[357251295,1743942691527,-365.76,0.00082191,120]
[357251296,1743942691634,-500.0,0.00082191,120]